fUSD/lending_fUSD_20260622
["ID","MTS","AMOUNT","RATE_DAILY","PERIOD"]
[425990214,1782078644000,-12917.16,0.0002498,2]
[425990215,1782078644000,-24794.23,0.0002498,2]
[425990213,1782078644000,-9999.99,0.0002498,2]
[425990222,1782078644000,-190.84,0.00025,2]
[425990212,1782078644000,-2405.55389863,0.00024825,2]
[425990221,1782078644000,-185.01277686,0.00025,2]
[425990217,1782078644000,-217.67946025,0.00025,2]
[425990218,1782078644000,-224.0,0.00025,2]
[425990219,1782078644000,-518.18698857,0.00025,2]
[425990161,1782078644000,-155.44965025,0.00024094,2]
[425990197,1782078644000,-217.15233878,0.00024642,2]
[425990196,1782078644000,-9905.59807649,0.00024642,2]
[425990223,1782078644000,-497.0,0.00025,2]
[425990186,1782078644000,-500.0,0.00024369,2]
[425990195,1782078644000,-194.72792766,0.00024642,2]
[425990164,1782078644000,-9552.16786547,0.00024094,2]
[425990168,1782078644000,-209.40437684,0.00024094,2]
[425990172,1782078644000,-953.63483189,0.00024118,2]
[425990170,1782078644000,-714.43275267,0.00024094,2]
[425990173,1782078644000,-425.23,0.00024174,2]
[425990174,1782078644000,-3150.27,0.00024174,2]
[425990171,1782078644000,-152.0,0.00024109,3]
[425990175,1782078644000,-840.46,0.00024174,2]
[425990177,1782078644000,-22861.47,0.00024174,2]
[425990176,1782078644000,-1475.0,0.00024174,2]
[425990169,1782078644000,-209.40437684,0.00024094,2]
[425990178,1782078644000,-197.41,0.00024263,2]
[425990165,1782078644000,-209.40437684,0.00024094,2]
[425990187,1782078644000,-500.0,0.00024369,2]
[425990188,1782078644000,-230.78347666,0.00024369,2]
[425990190,1782078644000,-179.61656657,0.00024547,2]
[425990182,1782078644000,-256.6,0.00024324,2]
[425990185,1782078644000,-500.0,0.00024369,2]
[425990179,1782078644000,-151.0,0.00024277,2]
[425990181,1782078644000,-2319.72410669,0.00024277,2]
[425990192,1782078644000,-626.97408117,0.00024642,2]
[425990191,1782078644000,-621.57,0.00024609,7]
[425990189,1782078644000,-8590.26828991,0.00024491,2]
[425990180,1782078644000,-200.0,0.00024277,2]
[425990193,1782078644000,-217.15233878,0.00024642,2]
[425990183,1782078644000,-150.0,0.00024333,2]
[425990184,1782078644000,-201.93286098,0.00024367,2]
[425990264,1782078645000,-233.5188934,0.00025738,2]
[425990261,1782078645000,-10652.17309792,0.00025738,2]
[425990258,1782078645000,-626.97408117,0.00025738,2]
[425990262,1782078645000,-233.5188934,0.00025738,2]
[425990256,1782078645000,-695.39793187,0.00025737,2]
[425990260,1782078645000,-209.40437684,0.00025738,2]
[425990265,1782078645000,-233.5188934,0.00025738,2]
[425990259,1782078645000,-157.58664599,0.00025738,2]
[425990257,1782078645000,-233.5188934,0.00025738,2]
[425990255,1782078645000,-599.60298507,0.00025737,2]
[425990263,1782078645000,-151.0,0.00025738,2]
[425990266,1782078645000,-714.43275267,0.00025738,2]
[425990276,1782078645000,-316.0,0.000259,2]
[425990270,1782078645000,-1475.0,0.00025786,2]
[425990274,1782078645000,-1833.0,0.00025838,5]
[425990272,1782078645000,-638.0,0.00025834,10]
[425990273,1782078645000,-2116.0,0.00025838,5]
[425990269,1782078645000,-840.46,0.00025786,2]
[425990275,1782078645000,-1000.0,0.000259,2]
[425990271,1782078645000,-22861.47,0.00025786,2]
[425990277,1782078645000,-202.0,0.000259,2]
[425990267,1782078645000,-425.23,0.00025786,2]
[425990279,1782078645000,-200.0,0.00025921,2]
[425990289,1782078645000,-242.15909246,0.00026286,2]
[425990254,1782078645000,-209.40437684,0.00025736,2]
[425990268,1782078645000,-3150.27,0.00025786,2]
[425990244,1782078645000,-197.00141709,0.00025397,2]
[425990242,1782078645000,-645.0,0.00025384,2]
[425990247,1782078645000,-3663.43463552,0.00025497,2]
[425990229,1782078645000,-225.18697532,0.0002519,2]
[425990225,1782078645000,-626.97408117,0.0002519,2]
[425990227,1782078645000,-201.93286098,0.0002519,2]
[425990226,1782078645000,-157.58664599,0.0002519,2]
[425990224,1782078645000,-225.18697532,0.0002519,2]
[425990231,1782078645000,-225.18697532,0.0002519,2]
[425990230,1782078645000,-151.0,0.0002519,2]
[425990228,1782078645000,-10272.10520532,0.0002519,2]
[425990239,1782078645000,-500.0,0.00025383,2]
[425990233,1782078645000,-714.43275267,0.0002519,2]
[425990232,1782078645000,-225.18697532,0.0002519,2]
[425990241,1782078645000,-500.0,0.00025383,2]
[425990253,1782078645000,-207.66,0.00025718,2]
[425990240,1782078645000,-500.0,0.00025383,2]
[425990237,1782078645000,-2494.55939288,0.00025373,2]
[425990236,1782078645000,-200.0,0.00025373,2]
[425990234,1782078645000,-953.63483189,0.00025323,2]
[425990238,1782078645000,-500.0,0.00025382,2]
[425990243,1782078645000,-271.82606327,0.00025397,2]
[425990246,1782078645000,-200.0,0.00025495,2]
[425990252,1782078645000,-200.0,0.00025708,2]
[425990245,1782078645000,-206.0,0.00025416,2]
[425990250,1782078645000,-2088.204,0.00025636,10]
[425990248,1782078645000,-372.69584806,0.00025599,2]
[425990249,1782078645000,-8590.26828991,0.00025609,2]
[425990251,1782078645000,-178.036,0.00025636,10]
[425990235,1782078645000,-277.81817141,0.00025373,2]
[425990290,1782078645000,-151.0,0.00026286,2]
[425990281,1782078645000,-1991.316835,0.0002622,2]
[425990280,1782078645000,-2586.85809042,0.00025921,2]
[425990308,1782078645000,-150.0,0.00026481,2]
[425990315,1782078645000,-953.63483189,0.00026529,2]
[425990327,1782078645000,-150.0,0.00026581,2]
[425990328,1782078645000,-934.0,0.00026581,2]
[425990324,1782078645000,-150.0,0.00026581,2]
[425990322,1782078645000,-150.0,0.00026581,2]
[425990321,1782078645000,-1229.0,0.00026581,2]
[425990325,1782078645000,-150.0,0.00026581,2]
[425990319,1782078645000,-1276.0,0.00026581,2]
[425990323,1782078645000,-3647.0,0.00026581,2]
[425990326,1782078645000,-150.0,0.00026581,2]
[425990320,1782078645000,-383.0,0.00026581,2]
[425990310,1782078645000,-50000.0,0.000265,5]
[425990329,1782078645000,-150.0,0.00026581,2]
[425990341,1782078645000,-626.97408117,0.00026834,2]
[425990330,1782078645000,-6777.6041028,0.00026586,2]
[425990334,1782078645000,-450.1283813,0.00026757,2]
[425990337,1782078645000,-500.0,0.00026767,2]
[425990333,1782078645000,-1500.0,0.00026748,10]
[425990335,1782078645000,-716.5482869,0.00026757,2]
[425990332,1782078645000,-8590.26828991,0.00026727,2]
[425990339,1782078645000,-25892.6299798,0.00026768,2]
[425990336,1782078645000,-1128.5144814,0.00026757,2]
[425990338,1782078645000,-40173.1637771,0.00026768,2]
[425990340,1782078645000,-207.65173749,0.00026834,2]
[425990278,1782078645000,-310.0,0.000259,2]
[425990331,1782078645000,-151.0,0.00026716,2]
[425990314,1782078645000,-179.61656657,0.000265,2]
[425990342,1782078645000,-157.58664599,0.00026834,2]
[425990309,1782078645000,-500.0,0.00026499,2]
[425990282,1782078645000,-200.0,0.00026248,2]
[425990283,1782078645000,-3663.43463552,0.00026279,2]
[425990287,1782078645000,-217.15233878,0.00026286,2]
[425990284,1782078645000,-242.15909246,0.00026286,2]
[425990288,1782078645000,-11046.30350254,0.00026286,2]
[425990286,1782078645000,-157.58664599,0.00026286,2]
[425990285,1782078645000,-626.97408117,0.00026286,2]
[425990311,1782078645000,-150.0,0.000265,2]
[425990300,1782078645000,-166.0,0.0002636,5]
[425990293,1782078645000,-242.15909246,0.00026286,2]
[425990299,1782078645000,-452.174157,0.0002636,2]
[425990297,1782078645000,-493.123426,0.00026356,2]
[425990301,1782078645000,-271.82606327,0.00026397,2]
[425990292,1782078645000,-242.15909246,0.00026286,2]
[425990298,1782078645000,-472.29431,0.00026356,2]
[425990304,1782078645000,-1603.1459761,0.00026403,2]
[425990307,1782078645000,-479.3758097,0.00026481,2]
[425990316,1782078645000,-393.8,0.00026574,2]
[425990305,1782078645000,-200.0,0.00026469,2]
[425990306,1782078645000,-2682.57183977,0.00026469,2]
[425990318,1782078645000,-3560.0,0.00026581,2]
[425990302,1782078645000,-197.00141709,0.00026397,2]
[425990303,1782078645000,-283.84803976,0.00026397,2]
[425990296,1782078645000,-433.142446,0.00026356,2]
[425990294,1782078645000,-714.43275267,0.00026286,2]
[425990295,1782078645000,-256.6,0.00026296,2]
[425990317,1782078645000,-5135.81031666,0.00026575,2]
[425990381,1782078646000,-500.0,0.00027194,2]
[425990380,1782078646000,-500.0,0.00027194,2]
[425990385,1782078646000,-500.0,0.00027194,2]
[425990384,1782078646000,-500.0,0.00027194,2]
[425990378,1782078646000,-5598.35177894,0.00027194,2]
[425990370,1782078646000,-5598.35177894,0.00027093,2]
[425990376,1782078646000,-166.0,0.00027173,3]
[425990377,1782078646000,-5598.35177894,0.00027179,2]
[425990374,1782078646000,-501.0,0.00027137,2]
[425990373,1782078646000,-3000.0,0.00027123,3]
[425990379,1782078646000,-500.0,0.00027194,2]
[425990386,1782078646000,-500.0,0.00027194,2]
[425990397,1782078646000,-500.0,0.00027194,2]
[425990383,1782078646000,-500.0,0.00027194,2]
[425990388,1782078646000,-500.0,0.00027194,2]
[425990387,1782078646000,-500.0,0.00027194,2]
[425990394,1782078646000,-500.0,0.00027194,2]
[425990396,1782078646000,-500.0,0.00027194,2]
[425990393,1782078646000,-500.0,0.00027194,2]
[425990395,1782078646000,-500.0,0.00027194,2]
[425990389,1782078646000,-500.0,0.00027194,2]
[425990391,1782078646000,-500.0,0.00027194,2]
[425990390,1782078646000,-500.0,0.00027194,2]
[425990392,1782078646000,-500.0,0.00027194,2]
[425990367,1782078646000,-10000.0,0.00027037,2]
[425990382,1782078646000,-500.0,0.00027194,2]
[425990375,1782078646000,-5598.35177894,0.00027139,2]
[425990356,1782078646000,-482.42,0.00026928,2]
[425990368,1782078646000,-5598.35177894,0.00027055,2]
[425990413,1782078646000,-500.0,0.00027194,2]
[425990343,1782078646000,-225.18697532,0.00026834,2]
[425990345,1782078646000,-207.65173747,0.00026834,2]
[425990350,1782078646000,-250.0,0.00026849,8]
[425990344,1782078646000,-5072.16771874,0.00026834,2]
[425990351,1782078646000,-250.0,0.00026849,8]
[425990352,1782078646000,-3441.60557287,0.00026903,2]
[425990349,1782078646000,-714.43275267,0.00026834,2]
[425990347,1782078646000,-207.65173748,0.00026834,2]
[425990346,1782078646000,-151.0,0.00026834,2]
[425990354,1782078646000,-396.29,0.00026926,2]
[425990364,1782078646000,-5598.35177894,0.00027003,2]
[425990353,1782078646000,-185.21,0.00026926,2]
[425990362,1782078646000,-5598.35177894,0.00026991,2]
[425990363,1782078646000,-200.0,0.00027001,2]
[425990355,1782078646000,-151.0,0.00026926,7]
[425990361,1782078646000,-596.0,0.0002698,2]
[425990357,1782078646000,-5598.35177894,0.00026946,2]
[425990358,1782078646000,-5598.35177894,0.00026968,2]
[425990359,1782078646000,-150.0,0.00026972,2]
[425990360,1782078646000,-763.0,0.0002698,2]
[425990365,1782078646000,-200.0,0.00027017,2]
[425990372,1782078646000,-206.51495448,0.00027105,2]
[425990371,1782078646000,-162.86749291,0.00027094,2]
[425990366,1782078646000,-2781.82699784,0.00027017,2]
[425990369,1782078646000,-3663.43463552,0.00027062,2]
[425990399,1782078646000,-500.0,0.00027194,2]
[425990348,1782078646000,-251.11897888,0.00026834,2]
[425990401,1782078646000,-500.0,0.00027194,2]
[425990489,1782078646000,-500.0,0.00027194,2]
[425990471,1782078646000,-500.0,0.00027194,2]
[425990469,1782078646000,-500.0,0.00027194,2]
[425990473,1782078646000,-500.0,0.00027194,2]
[425990478,1782078646000,-500.0,0.00027194,2]
[425990480,1782078646000,-500.0,0.00027194,2]
[425990482,1782078646000,-500.0,0.00027194,2]
[425990475,1782078646000,-500.0,0.00027194,2]
[425990484,1782078646000,-500.0,0.00027194,2]
[425990466,1782078646000,-500.0,0.00027194,2]
[425990488,1782078646000,-500.0,0.00027194,2]
[425990486,1782078646000,-500.0,0.00027194,2]
[425990491,1782078646000,-500.0,0.00027194,2]
[425990496,1782078646000,-500.0,0.00027194,2]
[425990493,1782078646000,-500.0,0.00027194,2]
[425990502,1782078646000,-500.0,0.00027194,2]
[425990516,1782078646000,-500.0,0.00027194,2]
[425990498,1782078646000,-500.0,0.00027194,2]
[425990508,1782078646000,-500.0,0.00027194,2]
[425990504,1782078646000,-500.0,0.00027194,2]
[425990506,1782078646000,-500.0,0.00027194,2]
[425990510,1782078646000,-500.0,0.00027194,2]
[425990514,1782078646000,-500.0,0.00027194,2]
[425990512,1782078646000,-500.0,0.00027194,2]
[425990403,1782078646000,-500.0,0.00027194,2]
[425990455,1782078646000,-500.0,0.00027194,2]
[425990462,1782078646000,-500.0,0.00027194,2]
[425990500,1782078646000,-500.0,0.00027194,2]
[425990464,1782078646000,-500.0,0.00027194,2]
[425990460,1782078646000,-500.0,0.00027194,2]
[425990405,1782078646000,-500.0,0.00027194,2]
[425990398,1782078646000,-500.0,0.00027194,2]
[425990411,1782078646000,-500.0,0.00027194,2]
[425990409,1782078646000,-500.0,0.00027194,2]
[425990407,1782078646000,-500.0,0.00027194,2]
[425990417,1782078646000,-500.0,0.00027194,2]
[425990419,1782078646000,-500.0,0.00027194,2]
[425990421,1782078646000,-500.0,0.00027194,2]
[425990423,1782078646000,-500.0,0.00027194,2]
[425990426,1782078646000,-500.0,0.00027194,2]
[425990428,1782078646000,-500.0,0.00027194,2]
[425990438,1782078646000,-500.0,0.00027194,2]
[425990415,1782078646000,-500.0,0.00027194,2]
[425990432,1782078646000,-500.0,0.00027194,2]
[425990430,1782078646000,-500.0,0.00027194,2]
[425990442,1782078646000,-500.0,0.00027194,2]
[425990453,1782078646000,-500.0,0.00027194,2]
[425990458,1782078646000,-500.0,0.00027194,2]
[425990448,1782078646000,-500.0,0.00027194,2]
[425990451,1782078646000,-500.0,0.00027194,2]
[425990445,1782078646000,-500.0,0.00027194,2]
[425990446,1782078646000,-500.0,0.00027194,2]
[425990434,1782078646000,-500.0,0.00027194,2]
[425990440,1782078646000,-500.0,0.00027194,2]
[425990436,1782078646000,-500.0,0.00027194,2]
[425990443,1782078646000,-500.0,0.00027194,2]
[425990569,1782078647000,-166.0,0.00027292,3]
[425990557,1782078647000,-500.0,0.00027194,2]
[425990567,1782078647000,-433.142446,0.0002725,2]
[425990571,1782078647000,-681.55382466,0.00027297,2]
[425990573,1782078647000,-500.0,0.00027297,2]
[425990575,1782078647000,-500.0,0.00027297,2]
[425990580,1782078647000,-500.0,0.00027297,2]
[425990582,1782078647000,-500.0,0.00027297,2]
[425990578,1782078647000,-500.0,0.00027297,2]
[425990590,1782078647000,-500.0,0.00027297,2]
[425990584,1782078647000,-500.0,0.00027297,2]
[425990588,1782078647000,-500.0,0.00027297,2]
[425990592,1782078647000,-500.0,0.00027297,2]
[425990603,1782078647000,-500.0,0.00027297,2]
[425990597,1782078647000,-500.0,0.00027297,2]
[425990596,1782078647000,-500.0,0.00027297,2]
[425990555,1782078647000,-500.0,0.00027194,2]
[425990594,1782078647000,-500.0,0.00027297,2]
[425990586,1782078647000,-500.0,0.00027297,2]
[425990561,1782078647000,-500.0,0.00027194,2]
[425990525,1782078647000,-500.0,0.00027194,2]
[425990559,1782078647000,-500.0,0.00027194,2]
[425990595,1782078647000,-500.0,0.00027297,2]
[425990527,1782078647000,-500.0,0.00027194,2]
[425990534,1782078647000,-500.0,0.00027194,2]
[425990520,1782078647000,-500.0,0.00027194,2]
[425990523,1782078647000,-500.0,0.00027194,2]
[425990518,1782078647000,-500.0,0.00027194,2]
[425990529,1782078647000,-500.0,0.00027194,2]
[425990531,1782078647000,-500.0,0.00027194,2]
[425990540,1782078647000,-500.0,0.00027194,2]
[425990536,1782078647000,-500.0,0.00027194,2]
[425990538,1782078647000,-500.0,0.00027194,2]
[425990542,1782078647000,-500.0,0.00027194,2]
[425990547,1782078647000,-500.0,0.00027194,2]
[425990563,1782078647000,-986.0,0.00027194,2]
[425990553,1782078647000,-500.0,0.00027194,2]
[425990544,1782078647000,-500.0,0.00027194,2]
[425990548,1782078647000,-500.0,0.00027194,2]
[425990545,1782078647000,-500.0,0.00027194,2]
[425990551,1782078647000,-500.0,0.00027194,2]
[425990565,1782078647000,-621.57,0.00027219,7]
[425990593,1782078647000,-500.0,0.00027297,2]
[425990600,1782078647000,-500.0,0.00027297,2]
[425990602,1782078647000,-500.0,0.00027297,2]
[425990619,1782078647000,-538.38914193,0.00027396,2]
[425990623,1782078647000,-538.38914193,0.00027396,2]
[425990626,1782078647000,-538.38914193,0.00027396,2]
[425990628,1782078647000,-538.38914193,0.00027396,2]
[425990638,1782078647000,-500.0,0.00027396,2]
[425990627,1782078647000,-538.38914193,0.00027396,2]
[425990630,1782078647000,-1000.0,0.00027396,2]
[425990633,1782078647000,-1000.0,0.00027396,2]
[425990631,1782078647000,-1000.0,0.00027396,2]
[425990629,1782078647000,-150.0,0.00027396,20]
[425990637,1782078647000,-500.0,0.00027396,2]
[425990635,1782078647000,-500.0,0.00027396,2]
[425990632,1782078647000,-1000.0,0.00027396,2]
[425990634,1782078647000,-500.0,0.00027396,2]
[425990642,1782078647000,-2499.2819,0.00027396,2]
[425990639,1782078647000,-500.0,0.00027396,2]
[425990641,1782078647000,-294751.73915347,0.00027396,2]
[425990599,1782078647000,-500.0,0.00027297,2]
[425990640,1782078647000,-500.0,0.00027396,2]
[425990624,1782078647000,-538.38914193,0.00027396,2]
[425990621,1782078647000,-538.38914193,0.00027396,2]
[425990636,1782078647000,-500.0,0.00027396,2]
[425990625,1782078647000,-538.38914193,0.00027396,2]
[425990598,1782078647000,-500.0,0.00027297,2]
[425990622,1782078647000,-538.38914193,0.00027396,2]
[425990614,1782078647000,-260.4103811,0.00027382,2]
[425990605,1782078647000,-500.0,0.00027297,2]
[425990607,1782078647000,-194.64603168,0.00027297,2]
[425990613,1782078647000,-151.0,0.00027382,2]
[425990611,1782078647000,-157.58664599,0.00027382,2]
[425990610,1782078647000,-626.97408117,0.00027382,2]
[425990608,1782078647000,-151.4354994,0.00027297,2]
[425990601,1782078647000,-500.0,0.00027297,2]
[425990616,1782078647000,-151.0,0.00027394,7]
[425990606,1782078647000,-910.0,0.00027297,2]
[425990617,1782078647000,-538.38914193,0.00027396,2]
[425990618,1782078647000,-538.38914193,0.00027396,2]
[425990620,1782078647000,-538.38914193,0.00027396,2]
[425990609,1782078647000,-990.59026533,0.0002737,2]
[425990604,1782078647000,-500.0,0.00027297,2]
[425990612,1782078647000,-233.5188934,0.00027382,2]
[425990615,1782078647000,-714.43275267,0.00027382,2]
[425990644,1782078648000,-204.23447385,0.00026256,2]
[425990643,1782078648000,-200.0,0.00017425,2]
[425990667,1782078649000,-500.0,0.00027397,2]
[425990682,1782078649000,-500.0,0.00027397,2]
[425990670,1782078649000,-500.0,0.00027397,2]
[425990674,1782078649000,-500.0,0.00027397,2]
[425990671,1782078649000,-500.0,0.00027397,2]
[425990675,1782078649000,-500.0,0.00027397,2]
[425990678,1782078649000,-500.0,0.00027397,2]
[425990680,1782078649000,-1027.14,0.00027397,2]
[425990684,1782078649000,-581.93,0.00027397,2]
[425990666,1782078649000,-500.0,0.00027397,2]
[425990685,1782078649000,-573.99323837,0.00027397,2]
[425990683,1782078649000,-585.14,0.00027397,2]
[425990677,1782078649000,-500.0,0.00027397,2]
[425990681,1782078649000,-1302.58,0.00027397,2]
[425990679,1782078649000,-839.11,0.00027397,2]
[425990686,1782078649000,-500.0,0.00027397,2]
[425990687,1782078649000,-500.0,0.00027397,2]
[425990698,1782078649000,-500.0,0.00027397,2]
[425990688,1782078649000,-924.61,0.00027397,2]
[425990676,1782078649000,-500.0,0.00027397,2]
[425990673,1782078649000,-200.0,0.00027397,2]
[425990646,1782078649000,-519.57599053,0.00026256,2]
[425990665,1782078649000,-500.0,0.00027397,2]
[425990692,1782078649000,-500.0,0.00027397,2]
[425990653,1782078649000,-440.88150698,0.00027396,2]
[425990648,1782078649000,-314.55,0.00027396,2]
[425990649,1782078649000,-394.37174345,0.00027396,2]
[425990647,1782078649000,-2031.25356945,0.00027396,2]
[425990650,1782078649000,-399.48050875,0.00027396,2]
[425990651,1782078649000,-723.81046437,0.00027188,2]
[425990652,1782078649000,-63053.80869633,0.00027396,2]
[425990655,1782078649000,-3841.36361345,0.00027396,2]
[425990672,1782078649000,-500.0,0.00027397,2]
[425990656,1782078649000,-443.0,0.00027397,2]
[425990658,1782078649000,-500.0,0.00027397,2]
[425990661,1782078649000,-500.0,0.00027397,2]
[425990657,1782078649000,-408.0,0.00027397,2]
[425990654,1782078649000,-319.0,0.00026499,10]
[425990662,1782078649000,-500.0,0.00027397,2]
[425990664,1782078649000,-500.0,0.00027397,2]
[425990663,1782078649000,-500.0,0.00027397,2]
[425990668,1782078649000,-500.0,0.00027397,2]
[425990669,1782078649000,-500.0,0.00027397,2]
[425990660,1782078649000,-557.88013338,0.00027397,2]
[425990697,1782078649000,-500.0,0.00027397,2]
[425990659,1782078649000,-158.44286048,0.00027397,2]
[425990699,1782078649000,-500.0,0.00027397,2]
[425990714,1782078649000,-500.0,0.00027397,2]
[425990719,1782078649000,-500.0,0.00027397,2]
[425990721,1782078649000,-500.0,0.00027397,2]
[425990722,1782078649000,-1095.94,0.00027397,2]
[425990725,1782078649000,-500.0,0.00027397,2]
[425990720,1782078649000,-500.0,0.00027397,2]
[425990723,1782078649000,-500.0,0.00027397,2]
[425990724,1782078649000,-500.0,0.00027397,2]
[425990728,1782078649000,-500.0,0.00027397,2]
[425990713,1782078649000,-500.0,0.00027397,2]
[425990726,1782078649000,-500.0,0.00027397,2]
[425990738,1782078649000,-500.0,0.00027397,2]
[425990730,1782078649000,-500.0,0.00027397,2]
[425990737,1782078649000,-500.0,0.00027397,2]
[425990733,1782078649000,-500.0,0.00027397,2]
[425990734,1782078649000,-500.0,0.00027397,2]
[425990736,1782078649000,-181.21737551,0.00027397,7]
[425990731,1782078649000,-500.0,0.00027397,2]
[425990735,1782078649000,-500.0,0.00027397,2]
[425990732,1782078649000,-500.0,0.00027397,2]
[425990727,1782078649000,-500.0,0.00027397,2]
[425990717,1782078649000,-500.0,0.00027397,2]
[425990729,1782078649000,-500.0,0.00027397,2]
[425990715,1782078649000,-500.0,0.00027397,2]
[425990718,1782078649000,-526.66,0.00027397,2]
[425990694,1782078649000,-500.0,0.00027397,2]
[425990691,1782078649000,-500.0,0.00027397,2]
[425990696,1782078649000,-509.90902738,0.00027397,2]
[425990695,1782078649000,-500.0,0.00027397,2]
[425990690,1782078649000,-500.0,0.00027397,2]
[425990693,1782078649000,-500.0,0.00027397,2]
[425990700,1782078649000,-619.06,0.00027397,2]
[425990710,1782078649000,-545.28203543,0.00027397,2]
[425990704,1782078649000,-500.0,0.00027397,2]
[425990689,1782078649000,-607.01,0.00027397,2]
[425990705,1782078649000,-500.0,0.00027397,2]
[425990707,1782078649000,-500.0,0.00027397,2]
[425990711,1782078649000,-500.0,0.00027397,2]
[425990703,1782078649000,-500.0,0.00027397,2]
[425990701,1782078649000,-500.0,0.00027397,2]
[425990708,1782078649000,-745.77,0.00027397,2]
[425990709,1782078649000,-500.0,0.00027397,2]
[425990706,1782078649000,-500.0,0.00027397,2]
[425990712,1782078649000,-557.64332669,0.00027397,2]
[425990716,1782078649000,-500.0,0.00027397,2]
[425990702,1782078649000,-500.0,0.00027397,2]
[425990765,1782078650000,-500.0,0.00027397,2]
[425990775,1782078650000,-500.0,0.00027397,2]
[425990777,1782078650000,-500.0,0.00027397,2]
[425990776,1782078650000,-765.08,0.00027397,2]
[425990773,1782078650000,-500.0,0.00027397,2]
[425990766,1782078650000,-500.0,0.00027397,2]
[425990770,1782078650000,-500.0,0.00027397,2]
[425990768,1782078650000,-500.0,0.00027397,2]
[425990786,1782078650000,-500.0,0.00027397,2]
[425990769,1782078650000,-500.0,0.00027397,2]
[425990772,1782078650000,-500.0,0.00027397,2]
[425990779,1782078650000,-500.0,0.00027397,2]
[425990781,1782078650000,-500.0,0.00027397,2]
[425990778,1782078650000,-500.0,0.00027397,2]
[425990784,1782078650000,-500.0,0.00027397,2]
[425990782,1782078650000,-500.0,0.00027397,2]
[425990785,1782078650000,-500.0,0.00027397,2]
[425990783,1782078650000,-500.0,0.00027397,2]
[425990788,1782078650000,-500.0,0.00027397,2]
[425990787,1782078650000,-500.0,0.00027397,2]
[425990789,1782078650000,-500.0,0.00027397,2]
[425990792,1782078650000,-500.0,0.00027397,2]
[425990791,1782078650000,-500.0,0.00027397,2]
[425990793,1782078650000,-500.0,0.00027397,2]
[425990780,1782078650000,-500.0,0.00027397,2]
[425990790,1782078650000,-796.52,0.00027397,2]
[425990744,1782078650000,-500.0,0.00027397,2]
[425990774,1782078650000,-500.0,0.00027397,2]
[425990739,1782078650000,-500.0,0.00027397,2]
[425990741,1782078650000,-500.0,0.00027397,2]
[425990740,1782078650000,-557.83,0.00027397,2]
[425990743,1782078650000,-500.0,0.00027397,2]
[425990753,1782078650000,-500.0,0.00027397,2]
[425990795,1782078650000,-198.88053536,0.00027397,2]
[425990745,1782078650000,-500.0,0.00027397,2]
[425990742,1782078650000,-500.0,0.00027397,2]
[425990751,1782078650000,-500.0,0.00027397,2]
[425990752,1782078650000,-500.0,0.00027397,2]
[425990750,1782078650000,-500.0,0.00027397,2]
[425990746,1782078650000,-1096.97,0.00027397,2]
[425990767,1782078650000,-500.0,0.00027397,2]
[425990747,1782078650000,-500.0,0.00027397,2]
[425990749,1782078650000,-500.0,0.00027397,2]
[425990754,1782078650000,-500.0,0.00027397,2]
[425990762,1782078650000,-500.0,0.00027397,2]
[425990763,1782078650000,-522.58757195,0.00027397,2]